fUST/lending_fUST_20250515
["ID","MTS","AMOUNT","RATE_DAILY","PERIOD"]
[361144059,1747303845903,-591.16178375,0.00017088,2]
[361144060,1747303845913,-447.58706684,0.00017088,2]
[361144061,1747303845923,-350.0,0.00017088,2]
[361144062,1747303845934,-450.0,0.00017088,2]
[361144063,1747303845944,-450.0,0.00017088,2]
[361144064,1747303845956,-450.0,0.00017088,2]
[361144065,1747303845966,-170.53353245,0.00017088,2]
[361144066,1747303845976,-450.0,0.00017088,2]
[361144067,1747303845987,-2509.81,0.00017088,2]
[361144068,1747303845998,-450.0,0.00017088,2]
[361144069,1747303846008,-450.0,0.00017088,2]
[361144070,1747303846018,-450.19644435,0.00017088,2]
[361144071,1747303846029,-157.0,0.00017089,2]
[361144072,1747303846039,-300.0,0.00017089,2]
[361144073,1747303846049,-450.0,0.00017089,2]
[361144074,1747303846059,-450.0,0.00017089,2]
[361144075,1747303846069,-1098.48,0.00017089,2]
[361144076,1747303846079,-6348.46,0.00017089,2]
[361144077,1747303846090,-1249.68,0.00017089,2]
[361144078,1747303846100,-251.0028926,0.00017089,2]
[361144079,1747303846110,-450.0,0.00017089,2]
[361144080,1747303846120,-450.0,0.00017089,2]
[361144081,1747303846130,-2409.61,0.00017089,2]
[361144082,1747303846141,-277.03,0.00017089,2]
[361144083,1747303846151,-4449.11,0.00017089,2]
[361144085,1747303846161,-969.74,0.00017089,2]
[361144086,1747303846171,-450.0,0.00017089,2]
[361144088,1747303846181,-603.18,0.00017089,2]
[361144090,1747303846191,-450.0,0.00017089,2]
[361144093,1747303846201,-492.34,0.00017089,2]
[361144094,1747303846211,-1683.33,0.00017089,2]
[361144097,1747303846224,-201.96999432,0.00017089,2]
[361144099,1747303846234,-450.0,0.00017089,2]
[361144101,1747303846244,-450.0,0.00017089,2]
[361144103,1747303846254,-450.0,0.00017089,2]
[361144105,1747303846265,-612.18,0.00017089,2]
[361144107,1747303846275,-450.0,0.00017089,2]
[361144108,1747303846284,-450.0,0.00017089,2]
[361144109,1747303846294,-916.43,0.00017089,2]
[361144110,1747303846304,-450.0,0.00017089,2]
[361144111,1747303846315,-497.9,0.00017089,2]
[361144112,1747303846325,-748.82,0.00017089,2]
[361144113,1747303846334,-450.0,0.00017089,2]
[361144114,1747303846344,-450.0,0.00017089,2]
[361144115,1747303846354,-450.0,0.00017089,2]
[361144116,1747303846364,-585.56,0.00017089,2]
[361144117,1747303846374,-450.0,0.00017089,2]
[361144118,1747303846384,-609.73,0.00017089,2]
[361144119,1747303846394,-728.96,0.00017089,2]
[361144120,1747303846404,-813.32,0.00017089,2]
[361144121,1747303846413,-500.0,0.00017089,2]
[361144122,1747303846423,-363.1834287,0.000171,2]
[361144124,1747303846434,-363.1834287,0.000171,2]
[361144125,1747303846444,-363.1834287,0.000171,2]
[361144126,1747303846454,-363.1834287,0.000171,2]
[361144127,1747303846467,-450.0,0.00017166,2]
[361144128,1747303846477,-450.0,0.00017166,2]
[361144129,1747303846488,-250.0,0.00017166,2]
[361144130,1747303846498,-250.0,0.00017166,2]
[361144131,1747303846508,-450.0,0.00017166,2]
[361144132,1747303846519,-450.0,0.00017166,2]
[361144133,1747303846529,-450.0,0.00017166,2]
[361144134,1747303846539,-450.0,0.00017166,2]
[361144135,1747303846550,-450.0,0.00017166,2]
[361144136,1747303846560,-434.69105934,0.00017166,2]
[361144137,1747303846570,-450.0,0.00017166,2]
[361144138,1747303846580,-300.0,0.00017166,2]
[361144139,1747303846590,-450.0,0.00017166,2]
[361144140,1747303846599,-300.0,0.00017166,2]
[361144141,1747303846609,-450.0,0.00017166,2]
[361144142,1747303846618,-450.0,0.00017166,2]
[361144143,1747303846628,-450.0,0.00017166,2]
[361144144,1747303846639,-474.97735911,0.00017166,2]
[361144145,1747303846648,-255.24912084,0.00017166,2]
[361144146,1747303846658,-178.56783584,0.00017166,2]
[361144147,1747303846668,-450.0,0.00017166,2]
[361144148,1747303846678,-300.0,0.00017166,2]
[361144149,1747303846688,-450.0,0.00017166,2]
[361144150,1747303846697,-300.0,0.00017166,2]
[361144151,1747303846708,-450.0,0.00017166,2]
[361144152,1747303846718,-414.96500573,0.00017166,2]
[361144153,1747303846731,-450.0,0.00017166,2]
[361144154,1747303846741,-450.0,0.00017166,2]
[361144155,1747303846752,-450.0,0.00017166,2]
[361144156,1747303846764,-1140.85627546,0.00017166,2]
[361144157,1747303846774,-450.0,0.00017166,2]
[361144158,1747303846785,-450.0,0.00017166,2]
[361144159,1747303846796,-450.0,0.00017166,2]
[361144160,1747303846807,-450.0,0.00017166,2]
[361144161,1747303846816,-450.0,0.00017166,2]
[361144162,1747303846826,-450.0,0.00017166,2]
[361144163,1747303846836,-450.0,0.00017166,2]
[361144164,1747303846846,-450.0,0.00017166,2]
[361144165,1747303846856,-450.0,0.00017166,2]
[361144166,1747303846866,-450.0,0.00017166,2]
[361144167,1747303846876,-450.0,0.00017166,2]
[361144168,1747303846886,-450.0,0.00017166,2]
[361144169,1747303846896,-450.0,0.00017166,2]
[361144170,1747303846906,-450.0,0.00017166,2]
[361144171,1747303846916,-450.0,0.00017166,2]
[361144172,1747303846926,-450.0,0.00017166,2]
[361144173,1747303846936,-450.0,0.00017166,2]
[361144174,1747303846946,-450.0,0.00017166,2]
[361144175,1747303846956,-450.0,0.00017166,2]
[361144176,1747303846966,-450.0,0.00017166,2]
[361144177,1747303846978,-309.25931416,0.00017166,2]
[361144178,1747303846988,-450.0,0.00017166,2]
[361144179,1747303846998,-450.0,0.00017166,2]
[361144180,1747303847008,-251.1601865,0.00017166,2]
[361144181,1747303847017,-450.0,0.00017166,2]
[361144182,1747303847028,-450.0,0.00017166,2]
[361144183,1747303847037,-450.0,0.00017166,2]
[361144184,1747303847047,-450.0,0.00017166,2]
[361144185,1747303847057,-450.0,0.00017166,2]
[361144186,1747303847067,-450.0,0.00017166,2]
[361144187,1747303847077,-450.0,0.00017166,2]
[361144188,1747303847087,-450.0,0.00017166,2]
[361144189,1747303847097,-450.0,0.00017166,2]
[361144190,1747303847107,-450.0,0.00017166,2]
[361144191,1747303847116,-450.0,0.00017166,2]
[361144192,1747303847126,-450.0,0.00017166,2]
[361144193,1747303847135,-450.0,0.00017166,2]
[361144194,1747303847145,-450.0,0.00017166,2]
[361144195,1747303847155,-450.0,0.00017166,2]
[361144196,1747303847166,-450.0,0.00017166,2]
[361144197,1747303847176,-450.0,0.00017166,2]
[361144198,1747303847185,-450.0,0.00017166,2]
[361144199,1747303847195,-300.0,0.00017166,2]
[361144200,1747303847205,-450.0,0.00017166,2]
[361144201,1747303847214,-338.18044672,0.00017166,2]
[361144202,1747303847349,-450.0,0.00017166,2]
[361144203,1747303847359,-300.0,0.00017166,2]
[361144204,1747303847369,-450.0,0.00017166,2]
[361144205,1747303847379,-450.0,0.00017166,2]
[361144206,1747303847388,-450.0,0.00017166,2]
[361144207,1747303847398,-450.0,0.00017166,2]
[361144208,1747303847407,-247.74,0.00017166,2]
[361144209,1747303847418,-300.0,0.00017166,2]
[361144210,1747303847427,-300.0,0.00017166,2]
[361144211,1747303847437,-154.3,0.00017166,2]
[361144212,1747303847447,-450.0,0.00017166,2]
[361144213,1747303847457,-300.0,0.00017166,2]
[361144214,1747303847467,-264.0,0.00017166,2]
[361144215,1747303847477,-450.0,0.00017166,2]
[361144216,1747303847487,-174.34,0.00017166,2]
[361144217,1747303847496,-450.0,0.00017166,2]
[361144218,1747303847506,-450.0,0.00017166,2]
[361144219,1747303847516,-450.0,0.00017166,2]
[361144220,1747303847525,-450.0,0.00017166,2]
[361144221,1747303847535,-507.33,0.00017166,2]
[361144222,1747303847544,-450.0,0.00017166,2]
[361144223,1747303847554,-450.0,0.00017166,2]
[361144224,1747303847563,-291.38,0.00017166,2]
[361144225,1747303847573,-450.0,0.00017166,2]
[361144226,1747303847583,-450.0,0.00017166,2]
[361144227,1747303847592,-450.0,0.00017166,2]
[361144228,1747303847602,-495.44,0.00017166,2]
[361144229,1747303847612,-596.2,0.00017166,2]
[361144230,1747303847623,-450.0,0.00017166,2]
[361144231,1747303847633,-450.0,0.00017166,2]
[361144232,1747303847643,-450.0,0.00017166,2]
[361144233,1747303847652,-300.0,0.00017166,2]
[361144234,1747303847662,-187.54,0.00017166,2]
[361144235,1747303847672,-450.0,0.00017166,2]
[361144236,1747303847682,-453.08,0.00017166,2]
[361144237,1747303847692,-450.0,0.00017166,2]
[361144238,1747303847701,-450.0,0.00017166,2]
[361144239,1747303847711,-450.0,0.00017166,2]
[361144240,1747303847722,-413.98,0.00017166,2]
[361144241,1747303847733,-261.38,0.00017166,2]
[361144242,1747303847743,-450.0,0.00017166,2]
[361144243,1747303847752,-450.0,0.00017166,2]
[361144244,1747303847763,-446.76,0.00017166,2]
[361144245,1747303847773,-450.0,0.00017166,2]
[361144246,1747303847783,-450.0,0.00017166,2]
[361144247,1747303847793,-160.94,0.00017166,2]
[361144248,1747303847803,-450.0,0.00017166,2]
[361144249,1747303847812,-450.0,0.00017166,2]
[361144250,1747303847822,-450.0,0.00017166,2]
[361144251,1747303847831,-478.47,0.00017166,2]
[361144252,1747303847840,-450.0,0.00017166,2]
[361144253,1747303847850,-450.0,0.00017166,2]
[361144254,1747303847859,-394.71179927,0.00017166,2]
[361144255,1747303847868,-450.0,0.00017166,2]
[361144256,1747303847878,-450.0,0.00017166,2]
[361144257,1747303847887,-450.0,0.00017166,2]
[361144258,1747303847897,-450.0,0.00017166,2]
[361144259,1747303847907,-450.0,0.00017166,2]
[361144260,1747303847916,-450.0,0.00017166,2]
[361144261,1747303847926,-450.0,0.00017166,2]
[361144262,1747303847936,-450.0,0.00017166,2]
[361144263,1747303847946,-450.0,0.00017166,2]
[361144264,1747303847955,-151.0,0.00017166,2]
[361144265,1747303847965,-450.0,0.00017166,2]
[361144266,1747303847975,-450.0,0.00017166,2]
[361144267,1747303847985,-450.0,0.00017166,2]
[361144268,1747303847994,-450.0,0.00017166,2]
[361144269,1747303848005,-543.09,0.00017166,2]
[361144270,1747303848015,-477.1,0.00017166,2]
[361144271,1747303848025,-151.0,0.00017166,2]
[361144272,1747303848035,-450.0,0.00017166,2]
[361144273,1747303848045,-450.0,0.00017166,2]
[361144274,1747303848055,-450.0,0.00017166,2]
[361144275,1747303848066,-2566.64,0.00017166,2]
[361144276,1747303848077,-450.0,0.00017166,2]
[361144277,1747303848087,-450.0,0.00017166,2]
[361144278,1747303848098,-450.0,0.00017166,2]
[361144279,1747303848108,-588.25,0.00017166,2]
[361144280,1747303848118,-154.619579,0.00017166,2]
[361144281,1747303848128,-297.278942,0.00017166,2]
[361144282,1747303848138,-566.0,0.00017166,2]
[361144283,1747303848148,-297.278942,0.00017166,2]
[361144284,1747303848158,-450.0,0.00017166,2]
[361144285,1747303848168,-450.0,0.00017166,2]
[361144286,1747303848178,-450.0,0.00017166,2]
[361144287,1747303848187,-199.72825628,0.00017166,2]
[361144288,1747303848197,-252.55932573,0.00017166,2]
[361144289,1747303848207,-151.0,0.00017166,2]
[361144290,1747303848218,-429.76,0.00017166,2]
[361144291,1747303848227,-450.0,0.00017166,2]
[361144292,1747303848236,-450.0,0.00017166,2]
[361144293,1747303848247,-253.14642579,0.00017166,2]
[361144294,1747303848256,-450.0,0.00017166,2]
[361144295,1747303848266,-450.0,0.00017166,2]
[361144296,1747303848276,-450.0,0.00017166,2]
[361144297,1747303848286,-252.00570503,0.00017166,2]
[361144298,1747303848295,-151.0,0.00017166,2]
[361144299,1747303848305,-251.9931358,0.00017166,2]
[361144300,1747303848314,-450.0,0.00017166,2]
[361144301,1747303848324,-251.75283024,0.00017166,2]
[361144302,1747303848333,-250.0,0.00017167,2]
[361144303,1747303848342,-300.0,0.00017167,2]
[361144304,1747303848352,-151.0,0.00017167,2]
[361144305,1747303848362,-151.0,0.00017167,2]
[361144306,1747303848371,-151.0,0.00017167,2]
[361144307,1747303848380,-151.0,0.00017167,2]
[361144308,1747303848390,-151.0,0.00017167,2]
[361144309,1747303848400,-1214.83,0.00017167,2]
[361144310,1747303848409,-387.642719,0.00017167,2]
[361144311,1747303848418,-450.0,0.00017167,2]
[361144312,1747303848428,-387.642719,0.00017167,2]
[361144313,1747303848438,-1685.95,0.00017167,2]
[361144314,1747303848448,-450.0,0.00017167,2]
[361144315,1747303848459,-450.0,0.00017167,2]
[361144316,1747303848468,-450.0,0.00017167,2]
[361144317,1747303848478,-450.0,0.00017167,2]
[361144318,1747303848488,-2059.65,0.00017167,2]
[361144319,1747303848497,-523.83,0.00017167,2]
[361144320,1747303848507,-933.06,0.00017167,2]
[361144321,1747303848517,-450.0,0.00017167,2]
[361144322,1747303848526,-350.0,0.00017168,2]
[361144323,1747303848536,-151.0,0.00017168,2]
[361144324,1747303848545,-151.0,0.00017168,2]
[361144325,1747303848555,-227.133418,0.00017168,2]
[361144326,1747303848565,-227.133418,0.00017168,2]
[361144327,1747303848574,-151.0,0.00017168,2]
[361144328,1747303848584,-450.0,0.00017168,2]
[361144329,1747303848593,-450.0,0.00017168,2]
[361144330,1747303848603,-450.0,0.00017168,2]
[361144331,1747303848612,-450.0,0.00017168,2]
[361144332,1747303848622,-502.96,0.00017168,2]
[361144333,1747303848631,-151.0,0.00017168,2]
[361144334,1747303848640,-487.3120063,0.00017168,2]
[361144335,1747303848649,-450.0,0.00017168,2]
[361144336,1747303848659,-453.47,0.00017168,2]
[361144337,1747303848667,-450.0,0.00017168,2]
[361144338,1747303848675,-151.0,0.00017168,2]
[361144339,1747303848684,-450.0,0.00017168,2]
[361144340,1747303848693,-450.0,0.00017168,2]
[361144341,1747303848702,-450.0,0.00017168,2]
[361144342,1747303848711,-450.0,0.00017168,2]
[361144343,1747303848720,-450.0,0.00017168,2]
[361144344,1747303848732,-450.0,0.00017168,2]
[361144345,1747303848741,-450.0,0.00017168,2]
[361144346,1747303848749,-450.0,0.00017168,2]
[361144347,1747303848758,-151.0,0.00017168,2]
[361144348,1747303848770,-151.0,0.00017168,2]
[361144349,1747303848779,-151.0,0.00017168,2]
[361144350,1747303848788,-563.933956,0.00017168,2]
[361144351,1747303848797,-563.933956,0.00017168,2]
[361144352,1747303848808,-450.0,0.00017168,2]
[361144353,1747303848818,-8256.532174,0.00017168,2]
[361144354,1747303848827,-8256.532174,0.00017168,2]
[361144355,1747303848837,-450.0,0.00017168,2]
[361144356,1747303848847,-450.0,0.00017168,2]
[361144357,1747303848857,-450.0,0.00017168,2]
[361144358,1747303848868,-241.469804,0.00017168,2]
[361144359,1747303848878,-241.469804,0.00017168,2]
[361144360,1747303848888,-450.0,0.00017168,2]
[361144361,1747303848898,-450.0,0.00017168,2]
[361144362,1747303848908,-450.0,0.00017168,2]
[361144363,1747303848918,-461.99,0.00017168,2]
[361144364,1747303848928,-450.0,0.00017168,2]
[361144365,1747303848938,-151.0,0.00017168,2]
[361144366,1747303848947,-535.687189,0.00017168,2]
[361144367,1747303848957,-450.0,0.00017168,2]
[361144368,1747303848968,-535.687189,0.00017168,2]
[361144369,1747303848978,-485.47524009,0.00017168,2]
[361144370,1747303848988,-151.0,0.00017168,2]
[361144371,1747303848998,-151.0,0.00017168,2]
[361144372,1747303849008,-151.0,0.00017169,2]
[361144373,1747303849018,-151.0,0.00017169,2]
[361144374,1747303849028,-151.0,0.00017169,2]
[361144375,1747303849038,-151.0,0.00017169,2]
[361144376,1747303849047,-450.0,0.00017169,2]
[361144377,1747303849057,-249.47891798,0.00017169,2]
[361144378,1747303849069,-450.0,0.00017169,2]
[361144379,1747303849078,-151.0,0.00017169,2]
[361144380,1747303849088,-241.5114789,0.00017169,2]
[361144381,1747303849097,-292.59,0.00017169,2]
[361144382,1747303849195,-510.68,0.00017169,2]
[361144383,1747303849204,-166.58,0.00017169,2]
[361144384,1747303849214,-301.22161877,0.00017169,2]
[361144385,1747303849224,-151.0,0.00017169,2]
[361144386,1747303849233,-542.84668702,0.00017169,2]
[361144387,1747303849243,-151.0,0.00017169,2]
[361144388,1747303849252,-188.88,0.00017169,2]
[361144389,1747303849262,-303.65073792,0.00017169,2]
[361144390,1747303849272,-450.0,0.00017169,2]
[361144391,1747303849281,-450.0,0.00017169,2]
[361144392,1747303849291,-450.0,0.00017169,2]
[361144393,1747303849301,-450.0,0.00017169,2]
[361144394,1747303849310,-450.0,0.00017169,2]
[361144395,1747303849320,-151.0,0.00017169,2]
[361144396,1747303849330,-307.24407662,0.00017169,2]
[361144397,1747303849339,-450.0,0.00017169,2]
[361144398,1747303849348,-450.0,0.00017169,2]
[361144399,1747303849356,-340.423984,0.00017169,2]
[361144400,1747303849364,-340.423984,0.00017169,2]
[361144401,1747303849373,-151.0,0.00017169,2]
[361144402,1747303849382,-300.0,0.00017169,2]
[361144403,1747303849390,-450.0,0.00017169,2]
[361144404,1747303849400,-151.0,0.00017169,2]
[361144405,1747303849409,-354.593679,0.00017169,2]
[361144406,1747303849417,-354.593679,0.00017169,2]
[361144407,1747303849426,-570.871372,0.00017169,2]
[361144408,1747303849435,-151.0,0.00017169,2]
[361144409,1747303849444,-151.0,0.00017169,2]
[361144410,1747303849453,-450.0,0.00017169,2]
[361144411,1747303849461,-151.0,0.00017169,2]
[361144412,1747303849469,-199.937283,0.00017169,2]
[361144413,1747303849479,-251.048624,0.00017169,2]
[361144414,1747303849488,-251.048624,0.00017169,2]
[361144415,1747303849497,-171.438411,0.00017169,2]
[361144416,1747303849506,-151.0,0.00017169,2]
[361144417,1747303849516,-297.278942,0.00017169,2]
[361144418,1747303849525,-297.278942,0.00017169,2]
[361144419,1747303849534,-151.833104,0.00017171,2]
[361144420,1747303849543,-157.307976,0.00017171,2]
[361144421,1747303849552,-151.0,0.00017171,2]
[361144422,1747303849561,-151.0,0.00017171,2]
[361144423,1747303849571,-151.0,0.00017171,2]
[361144424,1747303849581,-151.0,0.00017171,2]
[361144425,1747303849591,-151.0,0.00017171,2]
[361144426,1747303849601,-151.0,0.00017171,2]
[361144427,1747303849611,-190.294385,0.00017171,2]
[361144428,1747303849621,-151.0,0.00017171,2]
[361144429,1747303849632,-226.837232,0.00017171,2]
[361144430,1747303849641,-226.837232,0.00017171,2]
[361144431,1747303849651,-219.137551,0.00017172,2]
[361144432,1747303849660,-151.0,0.00017172,2]
[361144433,1747303849670,-151.0,0.00017172,2]
[361144434,1747303849679,-151.0,0.000172,2]
[361144435,1747303849688,-200.0,0.00017225,2]
[361144436,1747303849698,-198.72327715,0.00017225,2]
[361144437,1747303849707,-307.98520341,0.00017225,2]
[361144438,1747303849719,-200.97609521,0.00017225,2]
[361144439,1747303849731,-201.48875926,0.00017225,2]
[361144440,1747303849740,-450.0,0.00017225,2]
[361144441,1747303849750,-450.0,0.00017225,2]
[361144442,1747303849760,-450.0,0.00017225,2]
[361144443,1747303849771,-583.98,0.00017225,2]
[361144444,1747303849780,-300.0,0.00017225,2]
[361144445,1747303849790,-756.09,0.00017225,2]
[361144446,1747303849800,-237.70461111,0.00017225,2]
[361144447,1747303849811,-2058.18,0.00017225,2]
[361144448,1747303849821,-300.0,0.00017225,2]
[361144449,1747303849830,-450.0,0.00017225,2]
[361144450,1747303849839,-300.0,0.00017225,2]
[361144451,1747303849849,-191.99643195,0.00017225,2]
[361144452,1747303849859,-450.0,0.00017225,2]
[361144453,1747303849868,-152.28529561,0.00017225,2]
[361144454,1747303849878,-2509.81,0.00017225,2]
[361144455,1747303849888,-450.0,0.00017225,2]
[361144456,1747303849898,-450.0,0.00017225,2]
[361144457,1747303849908,-250.0,0.00017226,2]
[361144458,1747303849917,-450.0,0.00017226,2]
[361144459,1747303849927,-1098.48,0.00017226,2]
[361144460,1747303849937,-6348.46,0.00017226,2]
[361144461,1747303849945,-1249.68,0.00017226,2]
[361144462,1747303849954,-450.0,0.00017226,2]
[361144463,1747303849964,-450.0,0.00017226,2]
[361144464,1747303849973,-2409.61,0.00017226,2]
[361144465,1747303849983,-4449.11,0.00017226,2]
[361144466,1747303849992,-969.74,0.00017226,2]
[361144467,1747303850001,-450.0,0.00017226,2]
[361144468,1747303850011,-603.18,0.00017226,2]
[361144469,1747303850020,-450.0,0.00017226,2]
[361144470,1747303850029,-492.34,0.00017226,2]
[361144471,1747303850039,-1683.33,0.00017226,2]
[361144472,1747303850048,-450.0,0.00017226,2]
[361144473,1747303850058,-450.0,0.00017226,2]
[361144474,1747303850067,-450.0,0.00017226,2]
[361144475,1747303850076,-612.18,0.00017226,2]
[361144476,1747303850086,-450.0,0.00017226,2]
[361144477,1747303850096,-252.38359032,0.00017226,2]
[361144478,1747303850105,-916.43,0.00017226,2]
[361144479,1747303850114,-450.0,0.00017226,2]
[361144480,1747303850124,-748.82,0.00017226,2]
[361144481,1747303850134,-450.0,0.00017226,2]
[361144482,1747303850144,-450.0,0.00017226,2]
[361144483,1747303850154,-450.0,0.00017226,2]
[361144484,1747303850164,-258.78,0.00017226,2]
[361144485,1747303850174,-609.73,0.00017226,2]
[361144486,1747303850184,-728.96,0.00017226,2]
[361144487,1747303850193,-813.32,0.00017226,2]
[361144488,1747303850203,-151.0,0.000173,2]
[361144489,1747303850213,-225.41295288,0.00017303,2]
[361144490,1747303850223,-450.0,0.00017303,2]
[361144491,1747303850232,-439.9736831,0.00017303,2]
[361144492,1747303850241,-450.0,0.00017303,2]
[361144493,1747303850251,-200.0,0.00017303,2]
[361144494,1747303850260,-450.0,0.00017303,2]
[361144495,1747303850269,-450.0,0.00017303,2]
[361144496,1747303850278,-450.0,0.00017303,2]
[361144497,1747303850287,-450.0,0.00017303,2]
[361144498,1747303850297,-450.0,0.00017303,2]
[361144499,1747303850306,-450.0,0.00017303,2]
[361144500,1747303850316,-356.74912663,0.00017303,2]
[361144501,1747303850326,-450.0,0.00017303,2]
[361144502,1747303850337,-450.0,0.00017303,2]
[361144503,1747303850347,-250.0,0.00017303,2]
[361144504,1747303850357,-450.0,0.00017303,2]
[361144505,1747303850366,-162.72,0.00017303,2]
[361144506,1747303850375,-348.75,0.00017303,2]
[361144507,1747303850386,-250.0,0.00017303,2]
[361144508,1747303850397,-450.0,0.00017303,2]
[361144509,1747303850407,-450.0,0.00017303,2]
[361144510,1747303850416,-225.14464213,0.00017303,2]
[361144511,1747303850425,-450.0,0.00017303,2]
[361144512,1747303850435,-250.0,0.00017303,2]
[361144513,1747303850444,-450.0,0.00017303,2]
[361144514,1747303850453,-450.0,0.00017303,2]
[361144515,1747303850463,-450.0,0.00017303,2]
[361144516,1747303850473,-450.0,0.00017303,2]
[361144517,1747303850482,-450.0,0.00017303,2]
[361144518,1747303850492,-450.0,0.00017303,2]
[361144519,1747303850501,-450.0,0.00017303,2]
[361144520,1747303850511,-346.8457114,0.00017303,2]
[361144521,1747303850520,-450.0,0.00017303,2]
[361144522,1747303850529,-450.0,0.00017303,2]
[361144523,1747303850539,-450.0,0.00017303,2]
[361144524,1747303850548,-450.0,0.00017303,2]
[361144525,1747303850558,-450.0,0.00017303,2]
[361144526,1747303850567,-450.0,0.00017303,2]
[361144527,1747303850576,-450.0,0.00017303,2]
[361144528,1747303850586,-250.0,0.00017303,2]
[361144529,1747303850595,-450.0,0.00017303,2]
[361144530,1747303850605,-450.0,0.00017303,2]
[361144531,1747303850614,-450.0,0.00017303,2]
[361144532,1747303850623,-450.0,0.00017303,2]
[361144533,1747303850633,-250.0,0.00017303,2]
[361144534,1747303850643,-202.11590032,0.00017303,2]
[361144535,1747303850653,-450.0,0.00017303,2]
[361144536,1747303850662,-450.0,0.00017303,2]
[361144537,1747303850672,-202.00372499,0.00017303,2]
[361144538,1747303850682,-450.0,0.00017303,2]
[361144539,1747303850691,-450.0,0.00017303,2]
[361144540,1747303850700,-450.0,0.00017303,2]
[361144541,1747303850710,-450.0,0.00017303,2]
[361144542,1747303850719,-450.0,0.00017303,2]
[361144543,1747303850732,-450.0,0.00017303,2]
[361144544,1747303850741,-255.32,0.00017303,2]
[361144545,1747303850751,-514.0,0.00017303,2]
[361144546,1747303850760,-450.0,0.00017303,2]
[361144547,1747303850853,-206.90013572,0.00017303,2]
[361144548,1747303850863,-450.0,0.00017303,2]
[361144549,1747303850873,-400.5,0.00017303,2]
[361144550,1747303850883,-450.0,0.00017303,2]
[361144551,1747303850893,-450.0,0.00017303,2]
[361144552,1747303850903,-450.0,0.00017303,2]
[361144553,1747303850914,-450.0,0.00017303,2]
[361144554,1747303850924,-450.0,0.00017303,2]
[361144555,1747303850933,-151.0,0.00017303,2]
[361144556,1747303850943,-450.0,0.00017303,2]
[361144557,1747303850952,-450.0,0.00017303,2]
[361144558,1747303850962,-588.04,0.00017303,2]
[361144559,1747303850972,-450.0,0.00017303,2]
[361144560,1747303850982,-151.0,0.00017303,2]
[361144561,1747303850992,-151.0,0.00017303,2]
[361144562,1747303851002,-507.33,0.00017303,2]
[361144563,1747303851012,-450.0,0.00017303,2]
[361144564,1747303851021,-450.0,0.00017303,2]
[361144565,1747303851031,-450.0,0.00017303,2]
[361144566,1747303851040,-450.0,0.00017303,2]
[361144567,1747303851050,-450.0,0.00017303,2]
[361144568,1747303851059,-495.44,0.00017303,2]
[361144569,1747303851068,-151.0,0.00017303,2]
[361144570,1747303851078,-294.949279,0.00017303,2]
[361144571,1747303851087,-255.41,0.00017303,2]